fUST/lending_fUST_20251227
["ID","MTS","AMOUNT","RATE_DAILY","PERIOD"]
[399891130,1766822962273,1356.22,0.00030137,120]
[399891131,1766822965098,-198.65936329,0.0001655,2]
[399891132,1766822965121,-300.0,0.00016767,2]
[399891133,1766822965141,-318.03340439,0.00016768,2]
[399891134,1766822965162,-193.5469853,0.00016768,2]
[399891135,1766822965187,-500.0,0.00016768,2]
[399891136,1766822965209,-500.0,0.00016768,2]
[399891137,1766822965232,-500.0,0.00016768,2]
[399891138,1766822965254,-500.0,0.00016768,2]
[399891139,1766822965275,-500.0,0.00016768,2]
[399891140,1766822965301,-500.0,0.00016768,2]
[399891141,1766822965589,-475.60258156,0.00016768,2]
[399891142,1766822965610,-500.0,0.00016768,2]
[399891143,1766822965632,-500.0,0.00016768,2]
[399891144,1766822965653,-500.0,0.00016768,2]
[399891145,1766822965674,-300.0,0.00016768,2]
[399891146,1766822965694,-7328.65328846,0.00016769,2]
[399891147,1766822989354,166.6441542,0.00016466,2]
[399891149,1766823013241,155.91,0.000144,2]
[399891150,1766823013660,155.91,0.000154,2]
[399891169,1766823032332,-155.91,0.000165,2]
[399891171,1766823032346,-648.87693556,0.00016735,2]
[399891174,1766823032358,-300.0,0.00016768,2]
[399891176,1766823032372,-903.0,0.00016768,2]
[399891178,1766823032383,-169.02256425,0.00016835,2]
[399891180,1766823032394,-155.91,0.000175,2]
[399891182,1766823032406,-416.53548487,0.00017738,2]
[399891184,1766823032417,-334.12665555,0.00017738,2]
[399891187,1766823032429,-165.07525944,0.000179,2]
[399891189,1766823032440,-420.0,0.00018319,2]
[399891191,1766823032452,-155.91,0.000186,2]
[399891193,1766823032463,-42671.34671154,0.000186,2]
[399891195,1766823032475,-170.77549102,0.00018671,2]
[399891197,1766823032487,-199.44662581,0.00018835,2]
[399891200,1766823032499,-1502.74839953,0.00018946,2]
[399891202,1766823032510,-648.87693555,0.00019105,2]
[399891204,1766823032521,-180.00043382,0.000192,2]
[399891206,1766823032533,-41701.83610794,0.000193,2]
[399891208,1766823032546,-543.28720494,0.000193,2]
[399891211,1766823032560,-4472.0751145,0.000193,2]
[399891213,1766823032572,-14256.084518,0.000193,2]
[399891306,1766823038398,-222.62338307,0.00018599,2]
[399891308,1766823038408,-500.0,0.00018599,2]
[399891310,1766823038419,-103.46481064,0.00018599,2]
[399891318,1766823038497,-289.45699646,0.00018599,2]
[399891320,1766823038508,-500.0,0.00018599,2]
[399891322,1766823038518,-500.0,0.00018599,2]
[399891324,1766823038527,-500.0,0.00018599,2]
[399891326,1766823038537,-106.04970934,0.00018599,2]
[399891328,1766823038550,-393.95029066,0.00018599,2]
[399891330,1766823038560,-500.0,0.00018599,2]
[399891332,1766823038569,-500.0,0.00018599,2]
[399891334,1766823038579,-1106.04970934,0.000193,2]
[399891336,1766823038591,-2696.88146084,0.000193,2]
[399891338,1766823038602,-1419.96876349,0.000193,2]
[399891547,1766823040962,-3005.33900548,0.000193,2]
[399891549,1766823040976,-988.37,0.000193,2]
[399892059,1766823046914,-415.74,0.000193,2]
[399892061,1766823046927,-2147.26216477,0.000193,2]
[399892111,1766823047191,-14033.81464052,0.000193,2]
[399892396,1766823054062,483.0,0.000301,120]
[399892398,1766823115352,150.0,0.00010731,2]
[399892399,1766823115764,150.0,0.00011706,2]
[399892400,1766823116155,150.0,0.00012682,2]
[399892401,1766823116981,150.0,0.00013657,2]
[399892402,1766823117379,150.0,0.00014633,2]
[399892403,1766823117781,150.0,0.00015608,2]
[399892404,1766823184390,150.0,9.105e-05,2]
[399892405,1766823184890,150.0,9.933e-05,2]
[399892406,1766823185207,150.0,0.00010761,2]
[399892407,1766823205358,500.0,0.00013273,2]
[399892408,1766823250067,500.0,0.00013273,2]
[399892409,1766823251605,501.54508569,0.00013273,2]
[399892410,1766823265736,5000.0,0.0001439,2]
[399892414,1766823289016,5000.0,0.0001439,2]
[399892415,1766823330555,161.0,0.000179,120]
[399892416,1766823349912,594.60520289,0.0001439,2]
[399892432,1766823390804,171.8527411,9.029e-05,2]
[399892437,1766823483717,500.0,0.00013699,2]
[399892456,1766823881791,500.0,0.00030134,120]
[399892457,1766823882026,500.0,0.00030134,120]
[399892458,1766823882261,500.0,0.00030134,120]
[399892459,1766823882506,500.0,0.00030134,120]
[399892460,1766823882856,500.0,0.00030134,120]
[399892461,1766823882957,219.65372352,0.00030134,120]
[399892464,1766823947137,-194.5,0.000144,2]
[399892465,1766823947159,-137.37748924,0.00014441,2]
[399892472,1766824027088,-166.69827681,0.00014448,2]
[399892473,1766824027111,-295.18767073,0.00014455,2]
[399892474,1766824027137,-222.11646731,0.0001548,2]
[399892475,1766824027159,-196.70396663,0.00016448,2]
[399892476,1766824027181,-226.70965646,0.00018448,2]
[399892477,1766824027202,-162.4628666,0.00018833,2]
[399892478,1766824027224,-300.0,0.00019194,2]
[399892479,1766824027249,-500.0,0.00019195,2]
[399892480,1766824027270,-107.69985355,0.00019195,2]
[399892488,1766824162108,-476.79796843,0.00015,2]
[399892491,1766824164104,-31.66030841,0.00015,2]
[399892497,1766824203439,194.5,0.000144,2]
[399892535,1766824232491,-870.27521063,0.00018,5]
[399892537,1766824232503,-250.82246605,0.00018808,2]
[399892539,1766824232513,-501.1454685,0.00019,2]
[399892541,1766824232523,-486.65770168,0.00019096,2]
[399892543,1766824232533,-366.27,0.000191,2]
[399892545,1766824232542,-457.79137571,0.00019194,2]
[399892548,1766824232555,-506.02749464,0.00019194,2]
[399892550,1766824232567,-236.18112965,0.00019194,2]
[399892551,1766824232577,-181.81887035,0.00019194,2]
[399892552,1766824232588,-110.18112965,0.00019194,2]
[399892554,1766824232597,-25399.61952136,0.00019195,2]
[399892598,1766824238560,-20973.0575107,0.00019195,2]
[399892600,1766824238570,-570.44333676,0.00019195,2]
[399892602,1766824238580,-69152.35298701,0.00019199,2]
[399892604,1766824238592,-1739.46586864,0.00019199,2]
[399892606,1766824238603,-3811.66792024,0.00019199,2]
[399892609,1766824238615,-27128.20096962,0.00019199,2]
[399892612,1766824238639,-7996.19662887,0.00019199,2]
[399892615,1766824238660,-861.4296,0.00019199,2]
[399892617,1766824238688,-2196.29875058,0.00019199,2]
[399892913,1766824246475,-2446.65668567,0.00019199,2]
[399892915,1766824246488,-2086.3943386,0.00019199,2]
[399892917,1766824262681,194.5,0.000144,2]
[399892918,1766824268639,150.0,9.494e-05,2]
[399892919,1766824269083,150.0,0.00010357,2]
[399892920,1766824269448,150.0,0.00011221,2]
[399892921,1766824269860,150.0,0.00012084,2]
[399892922,1766824270271,150.0,0.00012947,2]
[399892923,1766824270647,172.29,0.0001381,2]
[399892924,1766824271047,201.0,0.00014673,2]
[399892925,1766824271452,229.72,0.00015536,2]
[399892926,1766824271858,258.43,0.00016399,2]
[399892934,1766824323458,194.5,0.000144,2]
[399892939,1766824338023,150.0,9.73e-05,2]
[399892940,1766824338405,150.0,0.00010615,2]
[399892941,1766824339018,150.0,0.00011499,2]
[399892942,1766824339405,150.0,0.00012384,2]
[399892943,1766824339809,150.0,0.00013269,2]
[399892944,1766824340399,150.0,0.00014153,2]
[399892959,1766824383183,500.0,0.00013699,2]
[399892960,1766824383228,1000.0,0.00014247,2]
[399892963,1766824388546,156.27,0.0001439,2]
[399892969,1766824405321,150.0,0.00012378,2]
[399893003,1766824550650,15236.16224337,0.00030136,120]
[399893020,1766824675130,2165.0,0.000301,120]
[399893021,1766824683296,198.15,7.953e-05,2]
[399893022,1766824683624,198.15,7.953e-05,2]
[399893023,1766824683936,198.15,7.953e-05,2]
[399893029,1766824694167,5000.0,0.0001439,2]
[399893039,1766824717590,4405.56,0.0001439,2]
[399893040,1766824717613,594.44,0.0001439,2]
[399893041,1766824721582,177.20231339,7.961e-05,2]
[399893054,1766824773288,202.0,8.3e-07,2]
[399893056,1766824774316,202.0,8.3e-07,2]
[399893117,1766824917496,150.0,0.00012371,2]
[399893118,1766824917736,150.0,0.00013495,2]
[399893119,1766824984808,150.0,0.00012358,2]
[399893120,1766824985249,150.0,0.00013482,2]
[399893121,1766825050582,150.0,9.31e-05,2]
[399893122,1766825050985,150.0,0.00010157,2]
[399893123,1766825051376,150.0,0.00011003,2]
[399893124,1766825051770,150.0,0.0001185,2]
[399893126,1766825135002,285.62782817,0.00030134,120]
[399893127,1766825154129,-626.0,0.000144,2]
[399893128,1766825154149,-156.28,0.000144,2]
[399893129,1766825154170,-174.70660959,0.0001451,2]
[399893130,1766825154189,-177.20231339,0.00015135,2]
[399893131,1766825154210,-156.28,0.000161,2]
[399893132,1766825154230,-206.15379932,0.0001651,2]
[399893133,1766825154252,-355.32517239,0.00017418,2]
[399893134,1766825154271,-639.5853103,0.00017418,2]
[399893135,1766825154296,-156.28,0.000179,2]
[399893136,1766825154314,-510.19558385,0.00018009,2]
[399893137,1766825154334,-101.98211703,0.00018042,2]
[399893139,1766825227138,-156.28,0.000144,2]
[399893140,1766825227162,-165.0,0.000152,2]
[399893141,1766825227183,-156.28,0.00017,2]
[399893142,1766825227204,-226.5886818,0.00017418,2]
[399893144,1766825236093,-176.55004201,0.00017418,2]
[399893145,1766825236115,-123.0921287,0.00018042,2]
[399893146,1766825236135,-1041.18687215,0.00018042,2]
[399893147,1766825236155,-1200.0,0.00018334,2]
[399893148,1766825236176,-237.60098905,0.0001851,2]
[399893149,1766825236196,-537.0,0.00019056,2]
[399893150,1766825236217,-123.72271309,0.00019056,2]
[399893152,1766825309493,150.0,9.363e-05,2]
[399893153,1766825309883,150.0,0.00010214,2]
[399893154,1766825310284,150.0,0.00011065,2]
[399893155,1766825310701,150.0,0.00011916,2]
[399893156,1766825311090,150.0,0.00012767,2]
[399893158,1766825325587,5000.0,0.0001439,2]
[399893159,1766825356099,-156.28,0.000144,2]
[399893160,1766825356127,-4978.34930698,0.00015052,2]
[399893161,1766825373120,-21.65069302,0.00015052,2]
[399893162,1766825373144,-177.73392034,0.00015204,2]
[399893163,1766825374797,238.4031054,0.00015135,2]
[399893168,1766825406596,156.28,0.000144,2]
[399893214,1766825431752,-156.28,0.00017,2]
[399893217,1766825431763,-104.83871272,0.00018057,2]
[399893285,1766825439880,-582.16128728,0.00018057,2]
[399893286,1766825439890,-2860.3536893,0.00018057,2]
[399893287,1766825439900,-177.0,0.00019056,2]
[399893288,1766825439910,-300.0,0.00019056,2]
[399893289,1766825439919,-300.0,0.00019056,2]
[399893290,1766825439928,-300.0,0.00019056,2]
[399893291,1766825439938,-620.0,0.00019056,2]
[399893292,1766825439947,-162.33738164,0.00019057,2]
[399893293,1766825439957,-282.4834215,0.00019057,2]
[399893294,1766825439967,-500.0,0.00019057,2]
[399893295,1766825439976,-300.71852353,0.00019057,2]
[399893296,1766825439986,-500.0,0.00019057,2]
[399893297,1766825440011,-600.54316388,0.00019057,2]
[399893298,1766825440021,-500.0,0.00019057,2]
[399893299,1766825440032,-500.0,0.00019057,2]
[399893300,1766825440041,-500.0,0.00019057,2]
[399893301,1766825440052,-500.0,0.00019057,2]
[399893302,1766825440063,-500.0,0.00019057,2]
[399893303,1766825440073,-500.0,0.00019057,2]
[399893304,1766825440084,-500.0,0.00019057,2]
[399893305,1766825440094,-500.0,0.00019057,2]
[399893306,1766825440104,-500.0,0.00019057,2]
[399893307,1766825440114,-500.0,0.00019057,2]
[399893308,1766825440124,-500.0,0.00019057,2]
[399893309,1766825440135,-500.0,0.00019057,2]
[399893310,1766825440145,-500.0,0.00019057,2]
[399893311,1766825440155,-500.0,0.00019057,2]
[399893312,1766825440164,-143.11434415,0.00019057,2]
[399893313,1766825440263,-22.97542989,0.00019057,2]
[399893314,1766825440274,-500.0,0.00019057,2]
[399893315,1766825440284,-500.0,0.00019057,2]
[399893316,1766825440294,-500.0,0.00019057,2]
[399893317,1766825440304,-500.0,0.00019057,2]
[399893318,1766825440313,-500.0,0.00019057,2]
[399893319,1766825440324,-500.0,0.00019057,2]
[399893320,1766825440334,-500.0,0.00019057,2]
[399893321,1766825440344,-229.37677915,0.00019057,2]
[399893322,1766825440353,-111372.68173583,0.00019058,2]
[399893323,1766825440366,-6625.0,0.00019058,2]
[399893336,1766825443901,-265.10827782,0.00019058,2]
[399893337,1766825444256,-1188.45556046,0.00019058,2]
[399893338,1766825444268,-255.28721074,0.00019058,2]
[399893339,1766825444280,-844.4688196,0.00019058,2]
[399893375,1766825502399,150.0,0.00011082,2]
[399893376,1766825502954,150.0,0.00012089,2]
[399893379,1766825503342,150.0,0.00013097,2]
[399893380,1766825503732,150.0,0.00014104,2]
[399893381,1766825504111,175.12,0.00015112,2]
[399893382,1766825505317,210.15,0.00016119,2]
[399893449,1766825575438,150.0,0.00011203,2]
[399893452,1766825575822,150.0,0.00012222,2]
[399893453,1766825576224,150.0,0.0001324,2]
[399893455,1766825576873,150.0,0.00014259,2]
[399893543,1766825646125,150.0,0.00010157,2]
[399893544,1766825646582,150.0,0.0001108,2]
[399893545,1766825647048,150.0,0.00012003,2]
[399893546,1766825647438,150.0,0.00012927,2]
[399893547,1766825647943,150.0,0.0001385,2]
[399893549,1766825713782,150.0,9.35e-05,2]
[399893550,1766825714185,150.0,0.000102,2]
[399893561,1766825827288,500.0,0.00013699,2]
[399893562,1766825827356,154.8977644,0.00014247,2]
[399893563,1766825854463,5088.0,0.0003013,120]
[399893564,1766825890768,5000.0,0.0003013,120]
[399893565,1766825920477,5000.0,0.0003013,120]
[399893566,1766825950340,5000.0,0.0003013,120]
[399893567,1766825951858,500.0,0.00030134,120]
[399893568,1766825952233,500.0,0.00030134,120]
[399893569,1766825952468,500.75223859,0.00030134,120]
[399893680,1766826203640,162.0,0.0001439,2]
[399893681,1766826226049,150.0,0.00010677,2]
[399893682,1766826226622,150.0,0.00011648,2]
[399893683,1766826227060,150.0,0.00012619,2]
[399893684,1766826227474,150.0,0.00013589,2]
[399893685,1766826244886,350.586841,0.00013699,2]
[399893687,1766826249771,650.28656167,7.961e-05,2]
[399893688,1766826250384,650.28656167,0.00011505,2]
[399893689,1766826255103,246.21609856,7.961e-05,2]
[399893690,1766826255701,246.21609856,0.00011505,2]
[399893692,1766826295281,150.0,0.00010665,2]
[399893693,1766826295711,150.0,0.00011635,2]
[399893694,1766826296126,150.0,0.00012604,2]
[399893695,1766826319105,5000.0,0.0001439,2]
[399893696,1766826323561,289.06058933,7.961e-05,2]
[399893697,1766826324255,289.06058933,0.00011505,2]
[399893698,1766826342527,5000.0,0.0001439,2]
[399893699,1766826359945,150.0,0.00012975,2]
[399893700,1766826360362,150.0,0.00014155,2]
[399893701,1766826426240,150.0,0.00012959,2]
[399893702,1766826426623,150.0,0.00014137,2]
[399893703,1766826441124,-271.10014075,0.000144,2]
[399893704,1766826441149,-164.53749937,0.0001455,2]
[399893705,1766826441171,-553.84975336,0.00015049,2]
[399893706,1766826483888,160.31,7.933e-05,2]
[399893707,1766826484168,160.31,7.933e-05,2]
[399893708,1766826484441,160.29,7.933e-05,2]
[399893709,1766826506848,167.74303,8.846e-05,2]
[399893732,1766826560110,-171.5870445,0.0001455,2]
[399893733,1766826560135,-96.43680831,0.00015049,2]
[399893734,1766826560160,-246.21609856,0.00015049,2]
[399893735,1766826560183,-289.06058933,0.00015049,2]
[399893736,1766826565322,725.22,0.000144,2]
[399893737,1766826565732,725.22,0.000147,2]
[399893738,1766826566353,725.22,0.00015,2]
[399893739,1766826567112,725.22,0.000154,2]
[399893740,1766826567244,725.22,0.000157,2]
[399893741,1766826567484,725.22,0.00016,2]
[399893742,1766826567855,725.22,0.000163,2]
[399893768,1766826623229,451.17,0.000144,2]
[399893769,1766826623583,451.17,0.000147,2]
[399893770,1766826624185,451.17,0.00015,2]
[399893771,1766826624360,451.17,0.000154,2]
[399893772,1766826624718,238.86223088,0.000157,2]
[399893791,1766826631764,-212.30776912,0.000157,2]
[399893793,1766826631775,-451.17,0.00016,2]
[399893796,1766826631786,-354.42296089,0.000163,2]
[399893798,1766826631798,-96.74703911,0.000163,2]
[399893800,1766826631809,-202.47271251,0.0001655,2]
[399893802,1766826631820,-35.23947894,0.000166,2]
[399893804,1766826631833,-415.93052106,0.000166,2]
[399893806,1766826631845,-451.17,0.00017,2]
[399893809,1766826631855,-451.17,0.000173,2]
[399893811,1766826631866,-451.17,0.000176,2]
[399893813,1766826631876,-451.17,0.000179,2]
[399893815,1766826631885,-726.9833127,0.00017957,2]
[399893817,1766826631896,-254.47889856,0.00018105,2]
[399893819,1766826631906,-451.17,0.000182,2]
[399893821,1766826631917,-233.35838052,0.0001855,2]
[399893823,1766826631927,-300.0,0.00018591,2]
[399893825,1766826631937,-500.0,0.00018592,2]
[399893827,1766826631947,-406.40821071,0.00018592,2]
[399893829,1766826631957,-200.03437773,0.00018592,2]
[399893831,1766826631967,-500.0,0.00018592,2]
[399893833,1766826631977,-357.08951656,0.00018592,2]
[399893835,1766826631988,-7328.65328846,0.00018593,2]
[399893837,1766826631998,-650.28656167,0.00018593,2]
[399893839,1766826632008,-246.21609856,0.00018593,2]
[399893840,1766826632018,-289.06058933,0.00018593,2]
[399893842,1766826632028,-451.17,0.000186,2]
[399893844,1766826632038,-1122.14,0.00018856,2]
[399893846,1766826632048,-65830.47820304,0.00018857,2]
[399893849,1766826632066,-721.22474694,0.00018857,2]
[399893891,1766826637820,-460.67964202,0.000172,2]
[399893892,1766826637830,-2370.78643713,0.00018857,2]
[399893893,1766826637843,-252.40685106,0.00018857,2]
[399893894,1766826637894,-11920.48840895,0.00018857,2]
[399893895,1766826637905,-3665.11543935,0.00018857,2]
[399893896,1766826637917,-1024.6242914,0.00018857,2]
[399893897,1766826637936,-24138.18086576,0.00018857,2]
[399893898,1766826637947,-738.58845075,0.00018857,2]
[399893899,1766826637959,-4295.00459402,0.00018857,2]
[399893902,1766826640082,-2711.83010996,0.00018857,2]
[399893903,1766826640136,-900.0,0.00018857,2]
[399893904,1766826640148,-7485.62,0.00018857,2]
[399893905,1766826640190,-2502.35060588,0.00018857,2]
[399893906,1766826640202,-454.58,0.00018857,2]
[399893907,1766826640216,-680.85834149,0.00018857,2]
[399893929,1766826644728,-57071.95,0.00018857,2]
[399893931,1766826645958,-32094.35192545,0.00018857,2]
[399893932,1766826748666,179.24602588,0.0001439,2]
[399893934,1766826872682,150.0,0.00011415,2]
[399893936,1766826936578,150.0,0.00013301,2]
[399893937,1766826947681,2037.67325481,0.00030137,120]
[399893938,1766827001152,150.0,0.00013312,2]
[399893948,1766827062599,5000.0,0.0001439,2]
[399893963,1766827382291,237.3540604,7.961e-05,2]
[399893964,1766827382896,237.3540604,0.00011157,2]
[399893965,1766827383566,237.3540604,0.00014353,2]
[399893967,1766827530133,-268.61350826,0.000144,2]
[399893968,1766827550135,-480.23347937,0.000144,2]
[399893974,1766827602428,154.64887101,0.00030137,120]
[399893975,1766827632083,-179.86558993,0.00014975,2]
[399893976,1766827632106,-273.16989879,0.0001634,2]
[399893977,1766827632126,-212.24139612,0.00016975,2]
[399893978,1766827632148,-579.25583006,0.00017348,7]
[399893979,1766827632168,-237.3540604,0.00017549,2]
[399893980,1766827632189,-203.5469681,0.00018039,2]
[399893981,1766827632209,-265.29823196,0.00018104,2]
[399893982,1766827632230,-288.90115201,0.00018104,2]
[399893983,1766827632250,-492.8572652,0.00018301,2]
[399893984,1766827632271,-193.1773208,0.00018578,2]
[399893985,1766827632291,-300.0,0.000186,2]
[399893986,1766827632313,-500.0,0.00018756,2]
[399893987,1766827632335,-500.0,0.00018756,2]
[399893988,1766827632355,-500.0,0.00018756,2]
[399893989,1766827632377,-500.0,0.00018756,2]
[399893990,1766827632399,-380.19732621,0.00018756,2]
[399893991,1766827632421,-500.0,0.00018756,2]
[399893992,1766827632443,-500.0,0.00018756,2]
[399893993,1766827632464,-500.0,0.00018756,2]
[399893994,1766827632485,-425.82548897,0.00018756,2]
[399893995,1766827632512,-6780.12515378,0.00018757,2]
[399893996,1766827634156,223.08135848,0.00014353,2]
[399894001,1766827765713,1645.67,0.000144,2]
[399894002,1766827766089,1645.67,0.000147,2]
[399894003,1766827769189,457.63,0.00030137,120]
[399894004,1766827770131,-476.79796843,0.00015,2]
[399894005,1766827770152,-1645.67,0.00015,2]
[399894006,1766827770172,-1645.67,0.000154,2]
[399894007,1766827770192,-1438.44226444,0.000157,2]
[399894008,1766827823583,500.24,0.000144,2]
[399894009,1766827823954,500.24,0.000147,2]
[399894042,1766827838078,-500.24,0.00015,2]
[399894043,1766827838090,-57.42978425,0.000154,2]
[399894044,1766827838102,-442.81021575,0.000154,2]
[399894045,1766827838112,-500.24,0.000157,2]
[399894046,1766827838123,-500.24,0.00016,2]
[399894047,1766827838133,-500.24,0.000163,2]
[399894048,1766827838144,-217.7996923,0.0001643,2]
[399894049,1766827838154,-500.24,0.000166,2]
[399894050,1766827838164,-183.82568821,0.0001672,2]
[399894051,1766827838174,-500.24,0.00017,2]
[399894052,1766827838184,-1102.5577151,0.00017009,2]
[399894073,1766827844156,-10643.72775756,0.00017009,2]
[399894074,1766827845224,-658.43905434,0.00017009,2]
[399894075,1766827845235,-500.24,0.000173,2]
[399894076,1766827845245,-300.0,0.00017599,2]
[399894077,1766827845255,-500.24,0.000176,2]
[399894078,1766827845265,-500.24,0.000179,2]
[399894079,1766827845274,-176.3377002,0.00018104,2]
[399894080,1766827845284,-317.40786035,0.00018104,2]
[399894081,1766827845294,-500.24,0.000182,2]
[399894082,1766827845305,-500.24,0.000186,2]
[399894083,1766827845315,-629.69972432,0.00018662,2]
[399894084,1766827845324,-525.0,0.00018708,2]
[399894085,1766827845333,-216.91431209,0.0001872,2]
[399894086,1766827845343,-1270.7383557,0.00018742,2]
[399894087,1766827845352,-525.0,0.00018755,2]
[399894088,1766827845362,-273.98411735,0.00018756,2]
[399894089,1766827845371,-251.24638947,0.00018756,2]
[399894090,1766827845381,-525.0,0.00018757,2]
[399894091,1766827845391,-28278.62919744,0.00018757,2]
[399894092,1766827846346,-721.93503989,0.00018757,2]
[399894093,1766827879551,1399.38,0.000144,2]
[399894094,1766827879928,1398.19217119,0.000147,2]
[399894095,1766827893907,150.0,0.00010965,2]
[399894096,1766827894309,150.0,0.00011962,2]
[399894097,1766827894723,150.0,0.00012958,2]
[399894098,1766827895123,150.0,0.00013955,2]
[399894099,1766827938467,209.93973009,7.961e-05,2]
[399894100,1766827939131,209.93973009,0.0001139,2]
[399894101,1766827959038,150.0,0.00010615,2]
[399894102,1766827959416,150.0,0.0001158,2]
[399894103,1766827959815,155.46,0.00012545,2]
[399894104,1766827960203,207.28,0.0001351,2]
[399894106,1766828035190,150.0,0.00010594,2]
[399894107,1766828035718,150.0,0.00011557,2]
[399894108,1766828035993,150.0,0.0001252,2]
[399894109,1766828036378,173.54,0.00013483,2]
[399894110,1766828050327,500.0,0.00013273,2]
[399894111,1766828069004,194.98,0.0001,2]
[399894114,1766828072111,194.98,0.000102,2]
[399894120,1766828103128,5000.0,0.000114,2]
[399894121,1766828103197,4000.0,0.000112,2]
[399894122,1766828107181,500.0,0.00013273,2]
[399894123,1766828110504,150.0,0.00010616,2]
[399894124,1766828110891,150.0,0.00011581,2]
[399894125,1766828111301,150.0,0.00012546,2]
[399894126,1766828111785,150.0,0.00013511,2]
[399894127,1766828117349,500.0,0.00013273,2]
[399894128,1766828120788,500.0,0.00013273,2]
[399894129,1766828120817,300.0,0.00013673,2]
[399894130,1766828123255,500.0,0.00013273,2]
[399894131,1766828145986,298.55710586,0.0001439,2]
[399894132,1766828183197,150.0,0.00012954,2]
[399894133,1766828183536,150.0,0.00014132,2]
[399894134,1766828223344,500.0,0.00013273,2]
[399894135,1766828254570,150.0,0.00012952,2]
[399894136,1766828255018,150.0,0.0001413,2]
[399894138,1766828279914,151.19,7.933e-05,2]
[399894139,1766828286406,500.0,0.00013273,2]
[399894141,1766828324169,150.0,0.00012959,2]
[399894142,1766828324570,150.0,0.00014137,2]
[399894147,1766828393231,150.0,0.00010652,2]
[399894148,1766828393612,150.0,0.00011621,2]
[399894149,1766828394215,150.0,0.00012589,2]
[399894150,1766828394611,150.0,0.00013557,2]
[399894151,1766828403346,500.0,0.00013273,2]
[399894152,1766828406386,500.0,0.00013273,2]
[399894153,1766828414651,-626.0,0.000144,2]
[399894154,1766828414708,-190.88671217,0.00014438,2]
[399894155,1766828414763,-150.0,0.00014526,2]
[399894156,1766828414794,-300.0,0.00014749,2]
[399894157,1766828414824,-335.0,0.00014749,2]
[399894158,1766828424753,496.51,0.000144,2]
[399894159,1766828425125,496.51,0.000147,2]
[399894160,1766828461328,150.0,0.00010651,2]
[399894161,1766828461747,150.0,0.0001162,2]
[399894162,1766828462156,150.0,0.00012588,2]
[399894177,1766828584117,225.1466383,7.961e-05,2]
[399894178,1766828584727,225.1466383,0.00010657,2]
[399894179,1766828585390,225.1466383,0.00013353,2]
[399894193,1766828680072,381435.86327036,0.00030137,120]
[399894196,1766828746140,-157.07467642,0.000144,2]
[399894197,1766828811969,8874.5700851,0.00013735,2]
[399894198,1766828811991,10000.01,0.00013735,2]
[399894199,1766828812018,1249.0802264,0.00013735,2]
[399894200,1766828820229,761.8382463,7.961e-05,2]
[399894201,1766828820913,761.8382463,9.71e-05,2]
[399894202,1766828821586,761.8382463,0.00011459,2]
[399894203,1766828822229,761.8382463,0.00013208,2]
[399894204,1766828822878,5000.0,0.0001439,2]